Workbook

Sheet One Timestep Put
A1: Stock Value | B1: 100 | D1: One timestep | F1: expiration
A2: u | B2: 1.05 | D2: before expiration
A3: d | B3: 0.95
A4: q | B4: =(EXP(B6*B5)-B3)/(B2-B3) -> 0.5417535929 | F4: =$B$2*D8 -> 105
A5: dt | B5: =1/12 -> 0.08333333333 | F5: =MAX($B$8-F4,0) -> 0
A6: r | B6: 0.05
A7: PVIF | B7: =EXP(-B6*B5) -> 0.9958420018
A8: Exercise Price | B8: 100 | D8: =B1 -> 100
D9: =$B$7*($B$4*F5+(1-$B$4)*F13) -> 2.281705097
B10: Stock Value | D10: =MAX(0,B8-B1) -> 0
B11: European Option Value | D11: =MAX(D10,D9) -> 2.281705097
B12: Early Exercise Value | F12: =$B$3*D8 -> 95
B13: American Option Value | F13: =MAX($B$8-F12,0) -> 5
A17: Value of Immediate Exercise | B17: =D10-D11 -> -2.281705097

Sheet One Timestep Call
A1: Stock Value | B1: 100 | D1: One timestep | F1: expiration
A2: u | B2: 1.05 | D2: before expiration
A3: d | B3: 0.95
A4: q | B4: =(EXP(B6*B5)-B3)/(B2-B3) -> 0.5417535929 | F4: =$B$2*D8 -> 105
A5: dt | B5: =1/12 -> 0.08333333333 | F5: =MAX(F4-$B$8,0) -> 5
A6: r | B6: 0.05
A7: PVIF | B7: =EXP(-B6*B5) -> 0.9958420018
A8: Exercise Price | B8: 100 | D8: =B1 -> 100
D9: =$B$7*($B$4*F5+(1-$B$4)*F13) -> 2.697504912
B10: Stock Value | D10: =MAX(0,B1-B8) -> 0
B11: European Option Value | D11: =MAX(D10,D9) -> 2.697504912
B12: Early Exercise Value | F12: =$B$3*D8 -> 95
B13: American Option Value | F13: =MAX(F12-$B$8,0) -> 0
A17: Value of Immediate Exercise | B17: =D10-D11 -> -2.697504912

Sheet Two Timestep Put
A1: Initial Asset Value | B1: 40 | D1: Two timesteps | F1: One timestep | H1: Expiration
A2: u | B2: 1.1 | D2: before expiration | F2: before expiration
A3: d | B3: 0.9
A4: q | B4: =(EXP(B6*B5)-B3)/(B2-B3) -> 0.6522726698 | H4: =$B$2*F7 -> 48.4
A5: dt | B5: 0.25 | H5: =MAX(B$8-H4,0) -> 0
A6: r | B6: 0.12
A7: PVIF | B7: =EXP(-B6*B5) -> 0.9704455335 | F7: =$B$2*D10 -> 44
A8: Exercise Price | B8: 42 | F8: =$B$7*($B$4*H5+(1-$B$4)*H12) -> 0.8098810428
F9: =MAX($B$8-F7,0) -> 0
B10: Stock Value | D10: =B1 -> 40
B11: European Option Value | D11: =$B$7*($B$4*F8+(1-$B$4)*F14) -> 2.118480301 | H11: =$B$3*F7 -> 39.6
B12: Early Exercise Value | D12: =B8-B1 -> 2 | H12: =MAX(B$8-H11,0) -> 2.4
B13: American Option Value | D13: =$B$7*($B$4*MAX(F8,F9)+(1-$B$4)*MAX(F14,F15)) -> 2.537353338 | F13: =$B$3*D10 -> 36
F14: =$B$7*($B$4*H12+(1-$B$4)*H18) -> 4.758712409
F15: =MAX($B$8-F13,0) -> 6
A17: Value of Immediate Exercise | B17: =D12-D13 -> -0.537353338 | H17: =$B$3*F13 -> 32.4
H18: =MAX(B$8-H17,0) -> 9.6

Sheet Two Timestep Call
A1: Initial Asset Value | B1: 100 | D1: Two timesteps | F1: One timestep | H1: Expiration
A2: u | B2: 1.05 | D2: before expiration | F2: before expiration
A3: d | B3: 0.95
A4: q | B4: =(EXP(B6*B5)-B3)/(B2-B3) -> 0.5417535929 | H4: =$B$2*F7 -> 110.25
A5: dt | B5: =1/12 -> 0.08333333333 | H5: =MAX(H4-B$8,0) -> 10.25
A6: r | B6: 0.05
A7: PVIF | B7: =EXP(-B6*B5) -> 0.9958420018 | F7: =$B$2*D10 -> 105
A8: Exercise Price | B8: 100 | F8: =$B$7*($B$4*H5+(1-$B$4)*H12) -> 5.52988507
F9: =MAX(F7-$B$8,0) -> 5
B10: Stock Value | D10: =B1 -> 100
B11: European Option Value | D11: =$B$7*($B$4*F8+(1-$B$4)*F14) -> 2.983378428 | H11: =$B$3*F7 -> 99.75
B12: Early Exercise Value | D12: =B8-B1 -> 0 | H12: =MAX(H11-B$8,0) -> 0
B13: American Option Value | D13: =$B$7*($B$4*MAX(F8,F9)+(1-$B$4)*MAX(F14,F15)) -> 2.983378428 | F13: =$B$3*D10 -> 95
F14: =$B$7*($B$4*H12+(1-$B$4)*H18) -> 0
F15: =MAX(F13-$B$8,0) -> 0
A17: Value of Immediate Exercise | B17: =D12-D13 -> -2.983378428 | H17: =$B$3*F13 -> 90.25
H18: =MAX(H17-B$8,0) -> 0

Sheet Three Timestep Put
A1: Initial Asset Value | B1: 100 | D1: Two timesteps | F1: One timestep | H1: Two timesteps | J1: Expiration
A2: u | B2: 1.05 | D2: before expiration | F2: before expiration | H2: before expiration | J2: =$B$2*H4 -> 115.7625
A3: d | B3: 0.95 | J3: =MAX(B$8-J2,0) -> 0
A4: q | B4: =(EXP(B6*B5)-B3)/(B2-B3) -> 0.5417535929 | H4: =$B$2*F7 -> 110.25
A5: dt | B5: =1/12 -> 0.08333333333 | H5: =$B$7*($B$4*J3+(1-$B$4)*J9) -> 0
A6: r | B6: 0.05 | H6: =MAX($B$8-H4,0) -> 0
A7: PVIF | B7: =EXP(-B6*B5) -> 0.9958420018 | F7: =$B$2*D10 -> 105
A8: Exercise Price | B8: 100 | F8: =$B$7*($B$4*H5+(1-$B$4)*H12) -> 1.090694322 | J8: =$B$3*H4 -> 104.7375
F9: =MAX($B$8-F7,0) -> 0 | J9: =MAX(B$8-J8,0) -> 0
B10: Stock Value | D10: =B1 -> 100 | F10: =MAX($B$8-F7,$B$7*($B$4*MAX(H6,H7)+(1-$B$4)*MAX(H12,H13))) -> 1.090694322
B11: European Option Value | D11: =$B$7*($B$4*F8+(1-$B$4)*F14) -> 3.120681678 | H11: =$B$3*F7 -> 99.75
B12: Early Exercise Value | D12: =MAX($B$8-D10,0) -> 0 | H12: =$B$7*($B$4*J9+(1-$B$4)*J15) -> 2.390086089
B13: American Option Value | D13: =$B$7*($B$4*MAX(F8,F10)+(1-$B$4)*MAX(F14,F16)) -> 3.207270795 | F13: =$B$3*D10 -> 95 | H13: =MAX($B$8-H11,$B$7*($B$4*J10+(1-$B$4)*J17)) -> 0.25
F14: =$B$7*($B$4*H12+(1-$B$4)*H18) -> 5.54903222 | J14: =$B$3*H11 -> 94.7625
F15: =MAX($B$8-F13,0) -> 5 | J15: =MAX(B$8-J14,0) -> 5.2375
F16: =MAX($B$8-F13,$B$7*($B$4*MAX(H12,H13)+(1-$B$4)*MAX(H18,H19))) -> 5.738778732
A17: Value of Immediate Exercise | B17: =D12-D13 -> -3.207270795 | H17: =$B$3*F13 -> 90.25
H18: =$B$7*($B$4*J15+(1-$B$4)*J20) -> 9.334200185
H19: =MAX($B$8-H17,$B$7*($B$4*J16+(1-$B$4)*J23)) -> 9.75 | J19: =$B$3*H17 -> 85.7375
J20: =MAX(B$8-J19,0) -> 14.2625

Sheet Three Timestep Call
A1: Initial Asset Value | B1: 100 | D1: Two timesteps | F1: One timestep | H1: Two timesteps | J1: Expiration
A2: u | B2: 1.05 | D2: before expiration | F2: before expiration | H2: before expiration | J2: =$B$2*H4 -> 115.7625
A3: d | B3: 0.95 | J3: =MAX(J2-B$8,0) -> 15.7625
A4: q | B4: =(EXP(B6*B5)-B3)/(B2-B3) -> 0.5417535929 | H4: =$B$2*F7 -> 110.25
A5: dt | B5: =1/12 -> 0.08333333333 | H5: =$B$7*($B$4*J3+(1-$B$4)*J9) -> 10.66579982
A6: r | B6: 0.05 | H6: =MAX(H4-$B$8,0) -> 10.25
A7: PVIF | B7: =EXP(-B6*B5) -> 0.9958420018 | F7: =$B$2*D10 -> 105
A8: Exercise Price | B8: 100 | F8: =$B$7*($B$4*H5+(1-$B$4)*H12) -> 6.920565058 | J8: =$B$3*H4 -> 104.7375
F9: =MAX(F7-$B$8,0) -> 5 | J9: =MAX(J8-B$8,0) -> 4.7375
B10: Stock Value | D10: =B1 -> 100 | F10: =MAX($B$8-F7,$B$7*($B$4*MAX(H5,H6)+(1-$B$4)*MAX(H12,H13))) -> 6.920565058
B11: European Option Value | D11: =$B$7*($B$4*F8+(1-$B$4)*F14) -> 4.362901629 | H11: =$B$3*F7 -> 99.75
B12: Early Exercise Value | D12: =MAX($B$8-D10,0) -> 0 | H12: =$B$7*($B$4*J9+(1-$B$4)*J15) -> 2.555885904
B13: American Option Value | D13: =$B$7*($B$4*MAX(F8,F10)+(1-$B$4)*MAX(F14,F16)) -> 4.362901629 | F13: =$B$3*D10 -> 95 | H13: =MAX(H11-$B$8,0) -> 0
F14: =$B$7*($B$4*H12+(1-$B$4)*H18) -> 1.378902957 | J14: =$B$3*H11 -> 94.7625
F15: =MAX(F13-$B$8,0) -> 0 | J15: =MAX(J14-B$8,0) -> 0
F16: =$B$7*($B$4*MAX(H12,H13)+(1-$B$4)*MAX(H18,H19)) -> 1.378902957
A17: Value of Immediate Exercise | B17: =D12-D13 -> -4.362901629 | H17: =$B$3*F13 -> 90.25
H18: =$B$7*($B$4*J15+(1-$B$4)*J20) -> 0
H19: =MAX(H17-$B$8,0) -> 0 | J19: =$B$3*H17 -> 85.7375
J20: =MAX(J19-B$8,0) -> 0
